[Event "Live Chess"]
[Site "Chess.com"]
[Date "2023.05.20"]
[Round "-"]
[White "Tushinskiy"]
[Black "Nazar_777"]
[Result "1-0"]
[WhiteElo "2155"]
[BlackElo "1625"]
[TimeControl "300"]
[EndTime "15:28:28 PDT"]
[Termination "Tushinskiy won by checkmate"]

1. d4 {[%clk 0:04:51.4]} 1... e6 {[%clk 0:04:59.9]} 2. c3 {[%clk 0:04:51.3]}
2... a6 {[%clk 0:04:58.8]} 3. Nf3 {[%clk 0:04:48.7]} 3... h5 {[%clk 0:04:58]} 4.
Bf4 {[%clk 0:04:48]} 4... c5 {[%clk 0:04:57.2]} 5. e3 {[%clk 0:04:46.8]} 5...
cxd4 {[%clk 0:04:55.6]} 6. exd4 {[%clk 0:04:46.7]} 6... Nf6 {[%clk 0:04:55]} 7.
Bd3 {[%clk 0:04:46.1]} 7... Be7 {[%clk 0:04:54.5]} 8. Nbd2 {[%clk 0:04:44.9]}
8... b5 {[%clk 0:04:54]} 9. Qe2 {[%clk 0:04:44.3]} 9... b4 {[%clk 0:04:53.2]}
10. h3 {[%clk 0:04:42.3]} 10... bxc3 {[%clk 0:04:52.3]} 11. bxc3 {[%clk
0:04:42.2]} 11... Nc6 {[%clk 0:04:51.3]} 12. O-O {[%clk 0:04:41.6]} 12... Bb7
{[%clk 0:04:50.4]} 13. Rab1 {[%clk 0:04:40.4]} 13... Qc8 {[%clk 0:04:48.2]} 14.
Nc4 {[%clk 0:04:36.2]} 14... g5 {[%clk 0:04:45.6]} 15. Bxg5 {[%clk 0:04:31.8]}
15... Qc7 {[%clk 0:04:44.2]} 16. Bh4 {[%clk 0:04:25.6]} 16... Ng4 {[%clk
0:04:37.8]} 17. Bg3 {[%clk 0:04:21.3]} 17... d6 {[%clk 0:04:25.4]} 18. hxg4
{[%clk 0:04:16.4]} 18... hxg4 {[%clk 0:04:23.8]} 19. Nh2 {[%clk 0:04:15.6]}
19... Bh4 {[%clk 0:04:18.6]} 20. d5 {[%clk 0:04:11.9]} 20... Ne5 {[%clk
0:04:15.8]} 21. Nxe5 {[%clk 0:04:09.5]} 21... Bxg3 {[%clk 0:04:07.6]} 22. fxg3
{[%clk 0:04:05.4]} 22... Qc5+ {[%clk 0:04:05.3]} 23. Qf2 {[%clk 0:04:03]} 23...
Qxf2+ {[%clk 0:04:02.9]} 24. Rxf2 {[%clk 0:04:02.9]} 24... dxe5 {[%clk
0:04:00.4]} 25. Rxb7 {[%clk 0:04:01.1]} 25... Rd8 {[%clk 0:03:54.9]} 26. Rfxf7
{[%clk 0:03:56.9]} 26... Rxd5 {[%clk 0:03:47]} 27. Nxg4 {[%clk 0:03:54.6]} 27...
Rxd3 {[%clk 0:03:43.1]} 28. Nf6+ {[%clk 0:03:53.4]} 28... Kd8 {[%clk 0:03:38.1]}
29. Rb8# {[%clk 0:03:53.3]} 1-0

[Event "Live Chess"]
[Site "Chess.com"]
[Date "2023.05.20"]
[Round "-"]
[White "Daniel_Gliddon_FA"]
[Black "ShanthamGrarks"]
[Result "0-1"]
[WhiteElo "1268"]
[BlackElo "1924"]
[TimeControl "300"]
[EndTime "15:28:34 PDT"]
[Termination "ShanthamGrarks won by resignation"]

1. e4 {[%clk 0:04:55.6]} 1... e5 {[%clk 0:04:55.3]} 2. d4 {[%clk 0:04:53]} 2...
exd4 {[%clk 0:04:53.1]} 3. c3 {[%clk 0:04:51.8]} 3... d3 {[%clk 0:04:52.2]} 4.
Bxd3 {[%clk 0:04:47.7]} 4... b6 {[%clk 0:04:50.9]} 5. Bf4 {[%clk 0:04:39.2]}
5... Nf6 {[%clk 0:04:48.4]} 6. Qc2 {[%clk 0:04:35.9]} 6... Bb7 {[%clk
0:04:46.8]} 7. f3 {[%clk 0:04:32.5]} 7... Nc6 {[%clk 0:04:42.5]} 8. Nd2 {[%clk
0:04:29.6]} 8... Be7 {[%clk 0:04:41.7]} 9. O-O-O {[%clk 0:04:27.5]} 9... a5
{[%clk 0:04:40.9]} 10. Ne2 {[%clk 0:04:21.4]} 10... a4 {[%clk 0:04:38.3]} 11.
Ng3 {[%clk 0:04:19.3]} 11... a3 {[%clk 0:04:26.1]} 12. b3 {[%clk 0:04:16.6]}
12... Ba6 {[%clk 0:04:22.2]} 13. e5 {[%clk 0:04:12.4]} 13... Nd5 {[%clk
0:04:13]} 14. Bxa6 {[%clk 0:04:01.4]} 14... Nxf4 {[%clk 0:04:05]} 15. Bf1 {[%clk
0:03:55.3]} 15... O-O {[%clk 0:03:55.3]} 16. Nde4 {[%clk 0:03:49.9]} 16... Nxe5
{[%clk 0:03:49.8]} 17. Nf5 {[%clk 0:03:47]} 17... Bf6 {[%clk 0:03:36.3]} 18. g3
{[%clk 0:03:42.2]} 18... Ne6 {[%clk 0:03:27.9]} 19. f4 {[%clk 0:03:40.8]} 19...
Ng6 {[%clk 0:03:15.9]} 20. Nxg7 {[%clk 0:03:28.8]} 20... Bxg7 {[%clk 0:03:11]}
21. f5 {[%clk 0:03:27.7]} 21... Ng5 {[%clk 0:02:59.8]} 22. Nxg5 {[%clk
0:03:20.9]} 22... Qxg5+ {[%clk 0:02:55.7]} 23. Kb1 {[%clk 0:03:12]} 23... Ne7
{[%clk 0:02:51.5]} 24. h4 {[%clk 0:03:03.5]} 24... Qxf5 {[%clk 0:02:48.7]} 25.
Bd3 {[%clk 0:03:01.4]} 25... Qf6 {[%clk 0:02:37.9]} 26. Bxh7+ {[%clk 0:02:57.8]}
26... Kh8 {[%clk 0:02:37.2]} 27. Rxd7 {[%clk 0:02:43.1]} 27... c6 {[%clk
0:02:31.1]} 28. g4 {[%clk 0:02:38.9]} 28... Nd5 {[%clk 0:02:26.7]} 29. g5 {[%clk
0:02:33.9]} 29... Nxc3+ {[%clk 0:02:25]} 30. Kc1 {[%clk 0:02:26.7]} 30... Qf4+
{[%clk 0:02:13.4]} 31. Qd2 {[%clk 0:02:18.3]} 31... Nxa2+ {[%clk 0:02:07.1]} 32.
Kc2 {[%clk 0:02:09.9]} 32... Qe5 {[%clk 0:01:39.4]} 33. Rd4 {[%clk 0:01:36.3]}
33... Kxh7 {[%clk 0:01:25.1]} 34. Qd3+ {[%clk 0:01:32.1]} 34... Kg8 {[%clk
0:01:22.4]} 35. h5 {[%clk 0:01:20.9]} 35... Rad8 {[%clk 0:01:06.4]} 36. h6
{[%clk 0:01:18.5]} 36... Rxd4 {[%clk 0:01:01.1]} 37. hxg7 {[%clk 0:00:56.7]}
37... Nb4+ {[%clk 0:00:56.1]} 38. Kb1 {[%clk 0:00:47.4]} 38... Rxd3 {[%clk
0:00:49.9]} 39. gxf8=Q+ {[%clk 0:00:41.5]} 39... Kxf8 {[%clk 0:00:49]} 40. Rh8+
{[%clk 0:00:37.8]} 40... Kg7 {[%clk 0:00:47.7]} 0-1

[Event "Live Chess"]
[Site "Chess.com"]
[Date "2023.05.20"]
[Round "-"]
[White "f4nomore"]
[Black "LiamClery2020"]
[Result "0-1"]
[WhiteElo "1416"]
[BlackElo "2072"]
[TimeControl "300"]
[EndTime "15:28:40 PDT"]
[Termination "LiamClery2020 won by resignation"]

1. d4 {[%clk 0:04:57.9]} 1... Nf6 {[%clk 0:04:58.5]} 2. Bg5 {[%clk 0:04:53.7]}
2... Ne4 {[%clk 0:04:57.5]} 3. Bh4 {[%clk 0:04:51.2]} 3... d5 {[%clk 0:04:55.2]}
4. c3 {[%clk 0:04:47.4]} 4... c5 {[%clk 0:04:53]} 5. e3 {[%clk 0:04:45.8]} 5...
Nc6 {[%clk 0:04:51]} 6. Nd2 {[%clk 0:04:42.8]} 6... Nxd2 {[%clk 0:04:49.9]} 7.
Qxd2 {[%clk 0:04:41]} 7... cxd4 {[%clk 0:04:48.1]} 8. cxd4 {[%clk 0:04:38.7]}
8... h6 {[%clk 0:04:44.9]} 9. Bg3 {[%clk 0:04:35.2]} 9... e5 {[%clk 0:04:43.8]}
10. Ne2 {[%clk 0:04:27.3]} 10... exd4 {[%clk 0:04:42.1]} 11. exd4 {[%clk
0:04:12.8]} 11... Bf5 {[%clk 0:04:40.2]} 12. Qe3+ {[%clk 0:04:06]} 12... Be7
{[%clk 0:04:39.2]} 13. Nc3 {[%clk 0:03:55.3]} 13... O-O {[%clk 0:04:36.6]} 14.
Bd3 {[%clk 0:03:51.1]} 14... Bg5 {[%clk 0:04:33.7]} 15. Qf3 {[%clk 0:03:35.9]}
15... Nxd4 {[%clk 0:04:30.5]} 16. Qxd5 {[%clk 0:03:26]} 16... Bxd3 {[%clk
0:04:26.3]} 17. Qxd8 {[%clk 0:03:23.8]} 17... Raxd8 {[%clk 0:04:26.2]} 18. f4
{[%clk 0:03:13.1]} 18... Nc2+ {[%clk 0:04:22.4]} 19. Kf2 {[%clk 0:03:07.2]}
19... Nxa1 {[%clk 0:04:20.5]} 20. Rxa1 {[%clk 0:03:04.6]} 20... Bf6 {[%clk
0:04:19]} 0-1

[Event "Live Chess"]
[Site "Chess.com"]
[Date "2023.05.20"]
[Round "-"]
[White "manthanit"]
[Black "jennybobby44"]
[Result "0-1"]
[WhiteElo "1022"]
[BlackElo "1846"]
[TimeControl "300"]
[EndTime "15:28:47 PDT"]
[Termination "jennybobby44 won by resignation"]

1. e4 {[%clk 0:04:58]} 1... c5 {[%clk 0:04:58.5]} 2. d4 {[%clk 0:04:54.7]} 2...
cxd4 {[%clk 0:04:57.9]} 3. Qxd4 {[%clk 0:04:53.7]} 3... Nc6 {[%clk 0:04:57.1]}
4. Qd1 {[%clk 0:04:53.2]} 4... g6 {[%clk 0:04:55.5]} 5. Nc3 {[%clk 0:04:49.1]}
5... Bg7 {[%clk 0:04:54.3]} 6. Nf3 {[%clk 0:04:45.6]} 6... Nf6 {[%clk
0:04:53.3]} 7. h3 {[%clk 0:04:41.4]} 7... O-O {[%clk 0:04:52.1]} 8. Bd3 {[%clk
0:04:40.1]} 8... d6 {[%clk 0:04:50.9]} 9. O-O {[%clk 0:04:38.9]} 9... a6 {[%clk
0:04:50.1]} 10. Re1 {[%clk 0:04:37.8]} 10... Nd7 {[%clk 0:04:49.2]} 11. a3
{[%clk 0:04:30.8]} 11... Nc5 {[%clk 0:04:48.3]} 12. Bc4 {[%clk 0:04:20.1]} 12...
b5 {[%clk 0:04:46.8]} 13. Ba2 {[%clk 0:04:18.7]} 13... Be6 {[%clk 0:04:43.7]}
14. b4 {[%clk 0:04:12]} 14... Bxc3 {[%clk 0:04:33.5]} 15. Bxe6 {[%clk
0:04:04.2]} 15... Nxe6 {[%clk 0:04:30.8]} 16. Rb1 {[%clk 0:03:56.1]} 16... Bxe1
{[%clk 0:04:29.2]} 17. Qxe1 {[%clk 0:03:54.4]} 17... Ne5 {[%clk 0:04:27]} 18.
Bb2 {[%clk 0:03:51.1]} 18... Nxf3+ {[%clk 0:04:25.4]} 19. gxf3 {[%clk
0:03:50.7]} 19... f6 {[%clk 0:04:22.9]} 20. Qc3 {[%clk 0:03:50.1]} 20... Ng7
{[%clk 0:04:12.7]} 21. f4 {[%clk 0:03:47.1]} 21... Qc8 {[%clk 0:04:08.9]} 22.
Qd3 {[%clk 0:03:44.5]} 22... Qc4 {[%clk 0:04:06.4]} 23. Qd1 {[%clk 0:03:31.3]}
23... Qxe4 {[%clk 0:04:00.8]} 24. Bc1 {[%clk 0:03:27.8]} 24... Nf5 {[%clk
0:03:54.8]} 25. f3 {[%clk 0:03:23.9]} 25... Qd4+ {[%clk 0:03:51.4]} 26. Qxd4
{[%clk 0:03:18.9]} 26... Nxd4 {[%clk 0:03:50.7]} 27. Kf2 {[%clk 0:03:09.6]}
27... Nxc2 {[%clk 0:03:49.7]} 28. Rb3 {[%clk 0:03:06.1]} 28... Nd4 {[%clk
0:03:47.4]} 29. Rc3 {[%clk 0:03:03.1]} 29... Rac8 {[%clk 0:03:46.1]} 30. Rxc8
{[%clk 0:03:00.6]} 30... Rxc8 {[%clk 0:03:45.2]} 31. Bb2 {[%clk 0:02:59.9]}
31... e5 {[%clk 0:03:44]} 32. fxe5 {[%clk 0:02:58.5]} 32... dxe5 {[%clk
0:03:43.5]} 33. f4 {[%clk 0:02:57.1]} 33... Rc2+ {[%clk 0:03:42.7]} 34. Ke3
{[%clk 0:02:54.9]} 34... Rxb2 {[%clk 0:03:42.6]} 35. fxe5 {[%clk 0:02:54.3]}
35... fxe5 {[%clk 0:03:42.3]} 36. Ke4 {[%clk 0:02:53.8]} 36... Nc2 {[%clk
0:03:40.9]} 37. Kxe5 {[%clk 0:02:52.9]} 37... Nxa3 {[%clk 0:03:40.4]} 38. Kd5
{[%clk 0:02:51.6]} 38... Rxb4 {[%clk 0:03:39.8]} 39. Kc6 {[%clk 0:02:50.9]}
39... Rc4+ {[%clk 0:03:39.1]} 40. Kb6 {[%clk 0:02:50.1]} 40... b4 {[%clk
0:03:38.1]} 41. Kxa6 {[%clk 0:02:49.2]} 41... b3 {[%clk 0:03:37.6]} 42. Kb6
{[%clk 0:02:44.2]} 42... b2 {[%clk 0:03:36.7]} 0-1

[Event "Live Chess"]
[Site "Chess.com"]
[Date "2023.05.20"]
[Round "-"]
[White "CheckThis4"]
[Black "risinghelios"]
[Result "1-0"]
[WhiteElo "2534"]
[BlackElo "1906"]
[TimeControl "300"]
[EndTime "15:28:55 PDT"]
[Termination "CheckThis4 won by resignation"]

1. d4 {[%clk 0:04:57.9]} 1... Nf6 {[%clk 0:04:58.6]} 2. Nc3 {[%clk 0:04:55.7]}
2... e6 {[%clk 0:04:57.6]} 3. e4 {[%clk 0:04:54.9]} 3... Bb4 {[%clk 0:04:56.9]}
4. e5 {[%clk 0:04:53.7]} 4... Nd5 {[%clk 0:04:55.8]} 5. Bd2 {[%clk 0:04:53.1]}
5... Bxc3 {[%clk 0:04:53.3]} 6. bxc3 {[%clk 0:04:53]} 6... O-O {[%clk
0:04:52.4]} 7. Qg4 {[%clk 0:04:52]} 7... Kh8 {[%clk 0:04:47.9]} 8. Bd3 {[%clk
0:04:50.4]} 8... d6 {[%clk 0:04:45.6]} 9. Nf3 {[%clk 0:04:49.2]} 9... c5 {[%clk
0:04:43.2]} 10. h4 {[%clk 0:04:41.2]} 10... dxe5 {[%clk 0:04:36.5]} 11. Nxe5
{[%clk 0:04:39]} 11... f6 {[%clk 0:04:29.7]} 12. Qh5 {[%clk 0:04:34.7]} 12... f5
{[%clk 0:04:22.5]} 13. Ng6+ {[%clk 0:04:31.4]} 13... Kg8 {[%clk 0:04:21.5]} 14.
Nxf8 {[%clk 0:04:30.4]} 14... Qxf8 {[%clk 0:04:21.4]} 15. O-O {[%clk 0:04:24.9]}
15... Nc6 {[%clk 0:04:19.8]} 16. dxc5 {[%clk 0:04:17.1]} 16... Qxc5 {[%clk
0:04:19.7]} 17. Qe8+ {[%clk 0:04:15.2]} 17... Qf8 {[%clk 0:04:17.5]} 18. Qxf8+
{[%clk 0:04:14.3]} 18... Kxf8 {[%clk 0:04:17.4]} 19. c4 {[%clk 0:04:13.1]} 19...
Ndb4 {[%clk 0:04:14.7]} 20. Rab1 {[%clk 0:04:11.8]} 20... a5 {[%clk 0:04:12.1]}
21. a3 {[%clk 0:04:10.3]} 21... Nxd3 {[%clk 0:04:10.4]} 22. cxd3 {[%clk
0:04:10.2]} 22... Ne5 {[%clk 0:04:09.7]} 23. Rb5 {[%clk 0:04:00.3]} 23... Nxd3
{[%clk 0:04:07.3]} 24. Rxa5 {[%clk 0:03:59]} 24... Rxa5 {[%clk 0:04:03.1]} 25.
Bxa5 {[%clk 0:03:58.9]} 25... Ne5 {[%clk 0:04:02.3]} 26. c5 {[%clk 0:03:52.2]}
26... Bd7 {[%clk 0:03:57.4]} 27. Bc7 {[%clk 0:03:49.3]} 27... Nc4 {[%clk
0:03:55.8]} 28. Rc1 {[%clk 0:03:42.4]} 28... Nxa3 {[%clk 0:03:52.8]} 29. Bd6+
{[%clk 0:03:41]} 29... Ke8 {[%clk 0:03:49.7]} 30. c6 {[%clk 0:03:40.4]} 1-0

[Event "Live Chess"]
[Site "Chess.com"]
[Date "2023.05.20"]
[Round "-"]
[White "sanjesh_ananda"]
[Black "AttackingSnowLeopard"]
[Result "0-1"]
[WhiteElo "1053"]
[BlackElo "2124"]
[TimeControl "300"]
[EndTime "15:28:57 PDT"]
[Termination "AttackingSnowLeopard won by resignation"]

1. e4 {[%clk 0:04:55.6]} 1... c6 {[%clk 0:04:57.4]} 2. d4 {[%clk 0:04:52]} 2...
d5 {[%clk 0:04:56.1]} 3. e5 {[%clk 0:04:50.9]} 3... c5 {[%clk 0:04:54.7]} 4. Nf3
{[%clk 0:04:48.9]} 4... Nc6 {[%clk 0:04:53.3]} 5. c4 {[%clk 0:04:47]} 5... cxd4
{[%clk 0:04:49.9]} 6. Nxd4 {[%clk 0:04:43.6]} 6... Nxd4 {[%clk 0:04:48]} 7. Qxd4
{[%clk 0:04:40.7]} 7... dxc4 {[%clk 0:04:47]} 8. Qxd8+ {[%clk 0:04:34.7]} 8...
Kxd8 {[%clk 0:04:46.9]} 9. Bxc4 {[%clk 0:04:33.4]} 9... e6 {[%clk 0:04:46.2]}
10. Bg5+ {[%clk 0:04:29.3]} 10... Be7 {[%clk 0:04:44.6]} 11. Be3 {[%clk
0:04:24.1]} 11... Bb4+ {[%clk 0:04:43.2]} 12. Nd2 {[%clk 0:04:16.9]} 12... Ne7
{[%clk 0:04:41.3]} 13. O-O-O {[%clk 0:04:15.3]} 13... Kc7 {[%clk 0:04:39.2]} 14.
Nb3 {[%clk 0:04:09.5]} 14... b6 {[%clk 0:04:29.9]} 15. a3 {[%clk 0:04:08]} 15...
Ba5 {[%clk 0:04:26.1]} 16. Nd4 {[%clk 0:03:54.1]} 16... a6 {[%clk 0:04:07.8]}
17. b4 {[%clk 0:03:50.9]} 17... b5 {[%clk 0:04:06.7]} 18. Bxb5 {[%clk 0:03:32]}
18... axb5 {[%clk 0:04:03.7]} 19. bxa5 {[%clk 0:03:23.1]} 19... Rxa5 {[%clk
0:04:00.3]} 20. Nb3 {[%clk 0:03:19.9]} 20... Rxa3 {[%clk 0:03:56.6]} 21. Kb2
{[%clk 0:03:18.7]} 21... Ra4 {[%clk 0:03:55.1]} 22. Nc5 {[%clk 0:03:14.8]} 22...
Rb4+ {[%clk 0:03:51.1]} 23. Ka3 {[%clk 0:03:09.4]} 23... Rc4 {[%clk 0:03:50.1]}
24. Rd7+ {[%clk 0:03:04.8]} 24... Bxd7 {[%clk 0:03:47.7]} 0-1

[Event "Live Chess"]
[Site "Chess.com"]
[Date "2023.05.20"]
[Round "-"]
[White "CeladonFish"]
[Black "JoeRoot66"]
[Result "0-1"]
[WhiteElo "1166"]
[BlackElo "1923"]
[TimeControl "300"]
[EndTime "15:28:58 PDT"]
[Termination "JoeRoot66 won by checkmate"]

1. d4 {[%clk 0:04:59.3]} 1... d5 {[%clk 0:04:57.1]} 2. c4 {[%clk 0:04:58.7]}
2... e6 {[%clk 0:04:56.2]} 3. Nc3 {[%clk 0:04:57.7]} 3... Nf6 {[%clk 0:04:55.7]}
4. cxd5 {[%clk 0:04:55.6]} 4... exd5 {[%clk 0:04:54.5]} 5. Bf4 {[%clk
0:04:54.5]} 5... c6 {[%clk 0:04:54.3]} 6. e3 {[%clk 0:04:53.6]} 6... Bd6 {[%clk
0:04:53.2]} 7. Nf3 {[%clk 0:04:53.1]} 7... Bxf4 {[%clk 0:04:52.8]} 8. exf4
{[%clk 0:04:52.8]} 8... O-O {[%clk 0:04:52.7]} 9. Be2 {[%clk 0:04:51.1]} 9...
Re8 {[%clk 0:04:52.6]} 10. O-O {[%clk 0:04:49.6]} 10... Ne4 {[%clk 0:04:52.2]}
11. Nxe4 {[%clk 0:04:47.9]} 11... dxe4 {[%clk 0:04:51.6]} 12. Nd2 {[%clk
0:04:47.5]} 12... Qxd4 {[%clk 0:04:48.7]} 13. Nb3 {[%clk 0:04:40.7]} 13... Qb6
{[%clk 0:04:46.8]} 14. Qc2 {[%clk 0:04:26]} 14... Bf5 {[%clk 0:04:41.8]} 15. Qc3
{[%clk 0:04:22.4]} 15... Nd7 {[%clk 0:04:40.1]} 16. Rfd1 {[%clk 0:04:20.3]}
16... Nf6 {[%clk 0:04:38.1]} 17. Nd4 {[%clk 0:04:14.6]} 17... Nd5 {[%clk
0:04:28.1]} 18. Qb3 {[%clk 0:03:56.1]} 18... Qxb3 {[%clk 0:04:26.8]} 19. axb3
{[%clk 0:03:54.4]} 19... Nxf4 {[%clk 0:04:23.7]} 20. Rd2 {[%clk 0:03:44.1]}
20... Nxe2+ {[%clk 0:04:21.3]} 21. Rxe2 {[%clk 0:03:42.7]} 21... Bg6 {[%clk
0:04:20.2]} 22. Rae1 {[%clk 0:03:37.3]} 22... Rad8 {[%clk 0:04:17.2]} 23. Nf3
{[%clk 0:03:29.1]} 23... Kf8 {[%clk 0:04:13.9]} 24. Ng5 {[%clk 0:03:25.9]} 24...
h6 {[%clk 0:04:10]} 25. Nxe4 {[%clk 0:03:22.4]} 25... Bxe4 {[%clk 0:04:09.3]}
26. Rxe4 {[%clk 0:03:21.8]} 26... Rxe4 {[%clk 0:04:09.2]} 27. Rxe4 {[%clk
0:03:20.5]} 27... Rd1+ {[%clk 0:04:08.7]} 28. Re1 {[%clk 0:03:18.4]} 28... Rxe1#
{[%clk 0:04:08.6]} 0-1

[Event "Live Chess"]
[Site "Chess.com"]
[Date "2023.05.20"]
[Round "-"]
[White "CameronM1234"]
[Black "Delacorta"]
[Result "0-1"]
[WhiteElo "1088"]
[BlackElo "1425"]
[TimeControl "300"]
[EndTime "15:29:08 PDT"]
[Termination "Delacorta won on time"]

1. e4 {[%clk 0:04:58.8]} 1... e6 {[%clk 0:04:58.4]} 2. d3 {[%clk 0:04:57.2]}
2... d5 {[%clk 0:04:56.8]} 3. Nd2 {[%clk 0:04:56.2]} 3... Nf6 {[%clk 0:04:54.3]}
4. e5 {[%clk 0:04:55]} 4... Nfd7 {[%clk 0:04:52.5]} 5. d4 {[%clk 0:04:54.9]}
5... c5 {[%clk 0:04:50.8]} 6. c3 {[%clk 0:04:53.4]} 6... Qb6 {[%clk 0:04:48.6]}
7. Ngf3 {[%clk 0:04:49.5]} 7... Nc6 {[%clk 0:04:41.5]} 8. Nb3 {[%clk 0:04:27.9]}
8... c4 {[%clk 0:04:39.9]} 9. Nbd2 {[%clk 0:04:26.5]} 9... a5 {[%clk 0:04:36.7]}
10. a4 {[%clk 0:04:19.2]} 10... Be7 {[%clk 0:04:17.3]} 11. b3 {[%clk 0:04:18.2]}
11... cxb3 {[%clk 0:04:07.3]} 12. Nxb3 {[%clk 0:04:18.1]} 12... O-O {[%clk
0:04:01.8]} 13. c4 {[%clk 0:04:10.7]} 13... dxc4 {[%clk 0:03:38.6]} 14. Bxc4
{[%clk 0:04:10.6]} 14... Qb4+ {[%clk 0:03:37.1]} 15. Nbd2 {[%clk 0:03:57.5]}
15... Qb6 {[%clk 0:03:13.6]} 16. d5 {[%clk 0:03:43.1]} 16... exd5 {[%clk
0:03:04.3]} 17. Bxd5 {[%clk 0:03:43]} 17... Ncxe5 {[%clk 0:03:01.8]} 18. Nxe5
{[%clk 0:03:26.8]} 18... Nxe5 {[%clk 0:03:00.2]} 19. O-O {[%clk 0:02:44]} 19...
Qg6 {[%clk 0:02:30.1]} 20. Qb3 {[%clk 0:02:25.6]} 20... Bh3 {[%clk 0:02:10.9]}
21. Be4 {[%clk 0:02:01.5]} 21... Qg4 {[%clk 0:01:43]} 22. Kh1 {[%clk 0:01:22.8]}
22... Bxg2+ {[%clk 0:01:23.2]} 23. Bxg2 {[%clk 0:01:20.6]} 23... Qe2 {[%clk
0:01:08.1]} 24. Qb2 {[%clk 0:00:44.1]} 24... Nd3 {[%clk 0:00:53.9]} 25. Qc2
{[%clk 0:00:17]} 25... Nxf2+ {[%clk 0:00:47.2]} 26. Kg1 {[%clk 0:00:15.6]} 26...
Qe3 {[%clk 0:00:38]} 27. Nc4 {[%clk 0:00:11.7]} 27... Nh3+ {[%clk 0:00:35.1]}
28. Kh1 {[%clk 0:00:10.5]} 28... Qg1+ {[%clk 0:00:30.5]} 29. Rxg1 {[%clk
0:00:09.3]} 29... Nf2+ {[%clk 0:00:29.1]} 30. Qxf2 {[%clk 0:00:08.5]} 30... Rad8
{[%clk 0:00:28.5]} 31. Ne5 {[%clk 0:00:07]} 31... Bf6 {[%clk 0:00:27.1]} 32. Nf3
{[%clk 0:00:04.2]} 32... Bxa1 {[%clk 0:00:25.4]} 33. Bg5 {[%clk 0:00:02.6]}
33... Bd4 {[%clk 0:00:23.9]} 34. Bxd8 {[%clk 0:00:01]} 34... Bxf2 {[%clk
0:00:22.9]} 35. Rf1 {[%clk 0:00:00.5]} 35... Ba7 {[%clk 0:00:20.8]} 0-1